bitfinex-derivatives/quotes_SOLF0:USTF0_20241107
["timestamp","ask_amount","ask_price","bid_price","bid_amount"]
[1730942643221,10.19548199,188.57,188.49,2.6508]
[1730942643615,10.19548199,188.57,188.47,12.76758199]
[1730942643616,10.19548199,188.55,188.47,2.5721]
[1730942644322,10.19548199,188.52,188.41,15.01548199]
[1730942645917,2.6507,188.51,188.45,2.6513]
[1730942646524,2.6507,188.5,188.45,2.6513]
[1730942646713,10.19548199,188.52,188.41,15.01548199]
[1730942646914,10.19548199,188.55,188.47,2.6511]
[1730942647119,2.6505,188.52,188.47,2.6511]
[1730942649124,2.6509,188.5,188.44,2.6515]
[1730942649928,2.6509,188.5,188.45,2.6514]
[1730942650325,2.6512,188.47,188.41,4.82]
[1730942650525,10.19548199,188.52,188.41,4.82]
[1730942650829,2.6511,188.48,188.41,4.82]
[1730942651133,2.6511,188.48,188.44,2.6516]
[1730942651323,10.19548199,188.52,188.44,2.6516]
[1730942651520,2.651,188.48,188.44,2.6516]
[1730942652831,2.651,188.48,188.43,2.6517]
[1730942653026,2.651,188.48,188.41,4.82]
[1730942654623,2.651,188.48,188.43,2.6516]
[1730942655225,2.651,188.48,188.44,2.6516]
[1730942655733,2.651,188.48,188.41,4.82]
[1730942655734,2.6508,188.5,188.42,10.19548199]
[1730942655937,59.39178437,188.61,188.41,4.82]
[1730942656140,69.58726636,188.61,188.5,10.19548199]
[1730942656443,2.6499,188.57,188.47,2.6511]
[1730942656735,10.19548199,188.59,188.48,2.4359]
[1730942657129,10.19548199,188.59,188.48,5.0869]
[1730942657130,2.6502,188.54,188.48,5.0869]
[1730942657330,59.39178437,188.61,188.48,2.4359]
[1730942657528,2.84547,188.62,188.48,2.4359]
[1730942657732,0.19637,188.62,188.54,10.19548199]
[1730942657929,0.19637,188.62,188.52,10.19548199]
[1730942658331,21.19,188.67,188.49,11.48058199]
[1730942658332,10.19548199,188.61,188.49,11.48058199]
[1730942658933,23.80353369,188.67,188.52,10.19548199]
[1730942659135,10.19548199,188.63,188.49,1.2851]
[1730942659439,7.85353369,188.67,188.49,11.48058199]
[1730942659745,10.19548199,188.62,188.49,11.48058199]
[1730942659935,2.6495,188.59,188.51,2.6505]
[1730942660133,7.85353369,188.67,188.51,2.6505]
[1730942660339,5.24,188.67,188.49,1.2851]
[1730942660536,10.19548199,188.63,188.49,1.2851]
[1730942660731,10.19548199,188.63,188.52,10.19548199]
[1730942661142,2.6492,188.62,188.52,10.19548199]
[1730942661531,10.19548199,188.63,188.52,10.19548199]
[1730942662442,2.6491,188.62,188.53,2.6503]
[1730942663043,2.6492,188.61,188.53,2.6503]
[1730942663344,2.6492,188.61,188.54,2.6502]
[1730942663544,2.6492,188.61,188.52,10.19548199]
[1730942664339,2.6493,188.6,188.53,2.6503]
[1730942664541,10.19548199,188.63,188.53,2.6503]
[1730942664738,10.19548199,188.63,188.52,10.19548199]
[1730942664938,2.6496,188.58,188.52,10.19548199]
[1730942665640,10.19548199,188.63,188.52,10.19548199]
[1730942665844,2.6495,188.59,188.52,12.84588199]
[1730942666440,10.19548199,188.63,188.54,2.6501]
[1730942666644,10.19548199,188.63,188.52,10.19548199]
[1730942667745,2.6494,188.6,188.54,2.6502]
[1730942668246,2.6492,188.61,188.55,2.6499]
[1730942668640,10.19548199,188.63,188.52,10.19548199]
[1730942668945,10.19548199,188.63,188.54,2.6501]
[1730942668946,2.6494,188.6,188.54,2.6501]
[1730942670736,2.6489,188.64,188.57,2.6497]
[1730942670945,10.19548199,188.68,188.57,10.19548199]
[1730942671251,10.19548199,188.68,188.58,2.5286]
[1730942671442,10.19548199,188.65,188.58,2.5286]
[1730942671746,10.19548199,188.65,188.53,10.19548199]
[1730942671943,2.6492,188.61,188.53,10.19548199]
[1730942672140,10.19548199,188.65,188.53,10.19548199]
[1730942672649,2.6492,188.62,188.55,2.65]
[1730942672852,10.19548199,188.65,188.55,2.65]
[1730942673052,10.19548199,188.65,188.53,10.19548199]
[1730942673254,2.6491,188.62,188.53,10.19548199]
[1730942673744,10.19548199,188.65,188.56,2.6499]
[1730942674148,10.19548199,188.63,188.53,10.19548199]
[1730942674548,10.19548199,188.63,188.53,2.6503]
[1730942674744,10.19548199,188.61,188.5,12.71858199]
[1730942675647,10.19548199,188.61,188.5,2.5231]
[1730942675843,2.6494,188.6,188.51,2.6505]
[1730942676039,10.19548199,188.61,188.51,2.6505]
[1730942676550,10.19548199,188.61,188.5,2.5231]
[1730942676551,10.19548199,188.55,188.22,2.39497588]
[1730942676848,38.0,188.6,188.36,12.68938199]
[1730942676849,10.19548199,188.48,188.36,12.68938199]
[1730942677247,2.6516,188.44,188.38,2.6523]
[1730942677746,2.65734116,188.52,188.37,1.2436]
[1730942677950,10.19548199,188.47,188.37,1.2436]
[1730942678751,10.19548199,188.48,188.37,1.2436]
[1730942679050,5.94,188.54,188.37,1.2436]
[1730942679255,10.19548199,188.49,188.4,2.6521]
[1730942680047,2.6512,188.47,188.4,2.6521]
[1730942680242,10.19548199,188.49,188.41,2.652]
[1730942680437,10.19548199,188.52,188.38,10.19548199]
[1730942681045,10.19548199,188.52,188.41,10.19548199]
[1730942681441,5.54132774,188.72,188.42,10.19548199]
[1730942681642,19.4858713,189.0,188.71,10.19548199]
[1730942681842,19.4858713,189.0,188.39,8.33238786]
[1730942681843,15.95,188.98,188.69,5.94]
[1730942682043,38.2,189.06,188.89,10.19548199]
[1730942682044,2.67881233,189.03,188.89,10.19548199]
[1730942682241,38.2,189.06,188.89,10.19548199]
[1730942682242,2.64458085,189.06,188.89,10.19548199]
[1730942682442,5.94,189.07,188.71,54.13]
[1730942682443,2.6439,189.0,188.86,2.6457]
[1730942682649,5.94,189.07,188.81,5.94]
[1730942682650,10.19548199,188.98,188.81,5.94]
[1730942682845,10.19548199,188.98,188.86,10.19548199]
[1730942683054,12.83988199,188.96,188.84,12.84138199]
[1730942683352,12.83988199,188.96,188.8,5.94]
[1730942683353,16.27463961,188.96,188.8,16.27463961]
[1730942683541,16.27463961,188.93,188.77,16.27463961]
[1730942684858,2.6452,188.9,188.77,16.27463961]
[1730942685054,5.94,188.89,188.77,16.27463961]
[1730942687452,2.6458,188.86,188.73,2.6475]
[1730942687661,2.6458,188.86,188.75,16.27463961]
[1730942688854,2.6458,188.86,188.71,1.2264]
[1730942689059,5.94,188.89,188.09,60.79596425]
[1730942689060,15.95,188.88,188.46,15.93]
[1730942689262,15.95,188.88,188.69,16.27463961]
[1730942689263,16.27463961,188.83,188.69,16.27463961]
[1730942689457,16.27463961,188.86,188.69,16.27463961]
[1730942689657,5.92,188.85,188.69,16.27463961]
[1730942689855,2.6465,188.81,188.69,18.92263961]
[1730942690155,5.92,188.85,188.71,16.27463961]
[1730942690562,1.2506,188.88,188.64,1.2142]
[1730942690563,1.2506,188.88,188.74,16.27463961]
[1730942690763,1.2506,188.88,188.68,16.27463961]
[1730942690764,5.92,188.87,188.68,16.27463961]
[1730942690965,5.92,188.87,188.75,16.27463961]
[1730942691152,2.6462,188.83,188.69,2.648]
[1730942691549,5.92,188.87,188.72,16.27463961]
[1730942691754,16.27463961,188.85,188.69,16.27463961]
[1730942691958,1.2506,188.88,188.64,1.2142]
[1730942692263,2.6457,188.86,188.76,16.27463961]
[1730942692559,6.04,188.9,188.64,1.2142]
[1730942692759,6.04,188.9,188.79,16.27463961]
[1730942693654,6.04,188.9,188.76,16.27463961]
[1730942694051,6.04,188.9,188.71,6.04]
[1730942694256,6.04,188.9,188.77,16.27463961]
[1730942695259,5.85566333,188.9,188.77,16.27463961]
[1730942695457,5.85566333,188.9,188.64,1.2142]
[1730942695759,16.27463961,188.88,188.72,16.27463961]
[1730942696269,2.646,188.84,188.74,2.6473]
[1730942696758,16.27463961,188.88,188.72,16.27463961]
[1730942696963,2.6463,188.82,188.72,18.92223961]
[1730942697353,16.27463961,188.88,188.72,16.27463961]
[1730942697556,5.85566333,188.9,188.65,6.04]
[1730942697760,38.16,188.95,188.78,16.27463961]
[1730942697958,44.2,188.95,188.74,6.04]
[1730942698163,44.2,188.95,188.77,16.27463961]
[1730942698367,16.27463961,188.93,188.77,16.27463961]
[1730942698559,44.2,188.95,188.64,1.2142]
[1730942698560,16.27463961,188.9,188.64,1.2142]
[1730942698760,15.95,188.94,188.69,16.27463961]
[1730942698761,16.27463961,188.86,188.69,16.27463961]
[1730942698955,2.6465,188.81,188.71,2.6478]
[1730942699159,6.04,188.85,188.71,2.6478]
[1730942699369,6.04,188.85,188.69,16.27463961]
[1730942699761,2.6464,188.81,188.72,2.6476]
[1730942699960,6.04,188.85,188.72,2.6476]
[1730942700564,2.6469,188.78,188.7,2.6479]
[1730942700758,6.04,188.85,188.69,16.27463961]
[1730942701264,6.04,188.85,188.65,1.3031]
[1730942701265,6.04,188.85,188.68,16.27463961]
[1730942701567,2.6462,188.83,188.75,2.6472]
[1730942701768,22.63463961,188.88,188.74,16.27463961]
[1730942702066,2.6464,188.81,188.73,2.6475]
[1730942702369,22.63463961,188.88,188.7,16.27463961]
[1730942702864,2.6467,188.79,188.7,16.27463961]
[1730942703057,22.63463961,188.88,188.7,16.27463961]
[1730942703258,16.27463961,188.85,188.7,16.27463961]
[1730942703463,16.27463961,188.85,188.67,16.27463961]
[1730942704169,6.36,188.88,188.67,16.27463961]
[1730942704461,16.27463961,188.85,188.67,16.27463961]
[1730942705064,16.27463961,188.85,188.7,2.6479]
[1730942705556,2.6471,188.76,188.68,2.6481]
[1730942705771,16.27463961,188.81,188.65,1.3031]
[1730942705959,1.3125,188.8,188.65,1.3031]
[1730942706161,1.3125,188.8,188.64,17.48883961]
[1730942706162,2.648,188.7,188.64,17.48883961]
[1730942706359,16.27463961,188.78,188.64,17.48883961]
[1730942706559,2.6479,188.7,188.64,1.2142]
[1730942707165,1.267,188.79,188.64,1.2142]
[1730942707166,2.6474,188.74,188.64,17.48883961]
[1730942707361,1.267,188.79,188.64,17.48883961]
[1730942707567,7.907,188.79,188.64,17.48883961]
[1730942707767,2.6474,188.75,188.68,2.6482]
[1730942707968,7.907,188.79,188.64,17.48883961]
[1730942709574,2.6475,188.74,188.66,2.6484]
[1730942709871,7.907,188.79,188.64,17.48883961]
[1730942710266,2.6473,188.75,188.68,2.6482]
[1730942710460,7.907,188.79,188.64,17.48883961]
[1730942710970,1.3125,188.8,188.68,16.27463961]
[1730942711165,1.3227,188.87,188.69,1.2727]
[1730942711475,17.57703961,188.91,188.75,16.27463961]
[1730942711775,16.27463961,188.88,188.72,16.27463961]
[1730942712278,2.6467,188.79,188.71,2.6477]
[1730942712467,6.94,188.83,188.69,17.54733961]
[1730942712664,16.27463961,188.81,188.65,17.51253961]
[1730942712864,16.27463961,188.81,188.68,2.6482]
[1730942712865,2.6472,188.76,188.68,2.6482]
[1730942713176,16.27463961,188.81,188.68,2.6482]
[1730942713374,2.6467,188.79,188.7,2.6479]
[1730942713566,1.3227,188.82,188.72,16.27463961]
[1730942713766,6.94,188.83,188.72,16.27463961]
[1730942714279,1.0,188.87,188.72,16.27463961]
[1730942714568,16.27463961,188.88,188.73,1.2122]
[1730942714768,2.6457,188.86,188.74,2.6473]
[1730942714970,16.27463961,188.89,188.73,1.2122]
[1730942715367,2.6462,188.83,188.73,1.2122]
[1730942715974,16.27463961,188.89,188.73,1.2122]
[1730942716868,16.27463961,188.89,188.74,2.6473]
[1730942716869,2.6462,188.83,188.74,2.6473]
[1730942717073,16.27463961,188.89,188.74,2.6473]
[1730942717374,2.6463,188.82,188.74,2.6473]
[1730942718971,1.2187,188.88,188.73,1.2122]
[1730942719172,2.6462,188.83,188.75,2.6472]
[1730942719976,2.6463,188.82,188.75,2.6472]
[1730942720172,2.6463,188.82,188.74,2.6473]
[1730942720484,1.2187,188.88,188.73,1.2122]
[1730942721079,2.6461,188.83,188.75,2.6472]
[1730942721273,1.2187,188.88,188.72,16.27463961]
[1730942721782,2.6464,188.81,188.72,16.27463961]
[1730942722177,2.6464,188.81,188.72,18.92213961]
[1730942722378,2.6464,188.81,188.67,1.2627]
[1730942722379,16.27463961,188.86,188.69,16.27463961]
[1730942722579,16.27463961,188.86,188.7,4.04278549]
[1730942722778,16.27463961,188.86,188.69,16.27463961]
[1730942722975,16.27463961,188.86,188.7,4.04305146]
[1730942723179,16.27463961,188.86,188.69,16.27463961]
[1730942723680,16.27463961,188.86,188.72,16.27463961]
[1730942724273,16.27463961,188.86,188.71,2.6477]
[1730942724586,16.27463961,188.86,188.68,16.27463961]
[1730942725184,2.6466,188.8,188.68,16.27463961]
[1730942725380,16.27463961,188.86,188.68,16.27463961]
[1730942725678,2.6467,188.79,188.72,2.6476]
[1730942725880,16.27463961,188.86,188.68,16.27463961]
[1730942726079,8.4787,188.88,188.72,16.27463961]
[1730942726787,8.4787,188.88,188.76,2.6471]
[1730942727282,2.6463,188.82,188.76,2.6471]
[1730942727484,8.4787,188.88,188.72,16.27463961]
[1730942727989,16.27463961,188.86,188.72,16.27463961]
[1730942728184,16.27463961,188.86,188.68,16.27463961]
[1730942728589,16.27463961,188.86,188.73,2.6474]
[1730942728786,2.6466,188.8,188.68,16.27463961]
[1730942729288,2.6466,188.8,188.74,2.6473]
[1730942731280,2.6467,188.79,188.74,2.6473]
[1730942732383,2.6465,188.81,188.74,2.6473]
[1730942732587,2.6465,188.81,188.75,2.6472]
[1730942732783,16.27463961,188.86,188.75,2.6472]
[1730942732981,16.27463961,188.86,188.71,16.27463961]
[1730942733177,2.6466,188.8,188.74,2.6474]
[1730942733384,16.27463961,188.86,188.71,16.27463961]
[1730942733581,2.6459,188.85,188.78,2.6467]
[1730942733787,1.2187,188.88,188.78,2.6467]
[1730942734088,1.2187,188.88,188.74,16.27463961]
[1730942734288,2.6464,188.82,188.75,2.6472]
[1730942734586,2.6464,188.82,188.71,16.27463961]
[1730942734784,2.6464,188.82,188.74,2.6473]
[1730942734985,1.2187,188.88,188.78,16.27463961]
[1730942735185,1.3011,188.91,188.78,16.27463961]
[1730942735392,1.3011,188.91,188.82,2.6462]
[1730942735589,1.3011,188.91,188.79,3.7633]
[1730942735590,2.6458,188.86,188.79,3.7633]
[1730942735793,1.3011,188.91,188.8,2.6465]
[1730942735984,59.29838984,188.93,188.79,3.7633]
[1730942736184,2.6452,188.9,188.79,3.7633]
[1730942736490,59.29838984,188.93,188.81,2.6463]
[1730942736893,16.27463961,188.92,188.79,3.7633]
[1730942737186,16.27463961,188.92,188.79,6.4099]
[1730942737391,16.27463961,188.92,188.79,3.7633]
[1730942737790,16.27463961,188.89,188.79,1.2342]
[1730942737988,16.27463961,188.89,188.75,16.27463961]
[1730942738186,2.6461,188.83,188.75,18.92173961]
[1730942738587,16.27463961,188.89,188.75,16.27463961]
[1730942738588,2.646,188.85,188.75,16.27463961]
[1730942738795,16.27463961,188.89,188.75,16.27463961]
[1730942739192,59.29838984,188.93,188.75,16.27463961]
[1730942739193,16.27463961,188.92,188.75,16.27463961]
[1730942740087,2.6454,188.88,188.81,2.6463]
[1730942740396,16.27463961,188.92,188.75,16.27463961]
[1730942741090,16.27463961,188.92,188.82,2.6461]
[1730942741295,16.27463961,188.92,188.75,16.27463961]
[1730942741589,2.6457,188.86,188.79,2.6466]
[1730942741794,2.6457,188.86,188.75,16.27463961]
[1730942741985,16.27463961,188.92,188.75,16.27463961]
[1730942742190,16.27463961,188.92,188.78,2.6468]
[1730942742490,16.27463961,188.92,188.74,16.27463961]
[1730942742689,2.6458,188.85,188.71,1.2744]
[1730942742882,16.27463961,188.92,188.74,16.27463961]
[1730942743082,16.27463961,188.89,188.71,1.2744]
[1730942743285,2.6459,188.85,188.77,2.6469]
[1730942743490,16.27463961,188.89,188.77,2.6469]
[1730942743685,16.27463961,188.89,188.71,1.2744]
[1730942743891,2.6463,188.82,188.75,2.6472]
[1730942744591,7.28,188.85,188.71,17.54903961]
[1730942744800,2.6465,188.8,188.74,2.6474]
[1730942744992,1.2735,188.84,188.71,1.2744]
[1730942745203,2.647,188.77,188.71,3.9222]
[1730942745493,16.27463961,188.82,188.69,1.2158]
[1730942745695,2.6469,188.78,188.69,2.648]
[1730942745929,16.27463961,188.82,188.69,2.648]
[1730942746091,16.27463961,188.82,188.67,1.2533]
[1730942746289,2.6476,188.73,188.67,1.2533]
[1730942746493,16.27463961,188.79,188.62,16.27463961]
[1730942746691,1.3249,188.78,188.62,17.48373961]
[1730942746896,2.6478,188.72,188.62,17.48373961]
[1730942747098,7.28,188.76,188.62,1.2091]
[1730942747299,1.3024,188.75,188.62,17.48373961]
[1730942747794,2.6478,188.71,188.62,17.48373961]
[1730942747995,1.3024,188.75,188.62,17.48373961]
[1730942748196,2.648,188.7,188.63,2.6489]
[1730942748407,1.3024,188.75,188.62,1.2091]
[1730942749399,2.6477,188.72,188.66,2.6485]
[1730942749596,1.3024,188.75,188.62,1.2091]
[1730942749998,2.6481,188.7,188.62,3.8581]
[1730942750197,45.7173,188.83,188.65,16.27463961]
[1730942750403,1.262,188.82,188.68,16.27463961]
[1730942750591,1.262,188.82,188.62,1.2091]
[1730942750592,3.95346284,188.82,188.62,1.2091]
[1730942750794,3.95346284,188.82,188.65,16.27463961]
[1730942751394,2.6471,188.76,188.69,2.648]
[1730942751798,1.262,188.82,188.65,16.27463961]
[1730942752006,1.262,188.82,188.68,16.27463961]
[1730942752607,2.6467,188.79,188.72,2.6477]
[1730942752808,1.262,188.82,188.68,16.27463961]
[1730942753104,1.262,188.82,188.69,1.2863]
[1730942754402,2.6466,188.8,188.69,1.2863]
[1730942755006,2.6466,188.8,188.74,2.6474]
[1730942756304,17.55443961,188.86,188.69,1.2863]
[1730942756902,16.27463961,188.86,188.69,1.2863]
[1730942757106,16.27463961,188.86,188.71,16.27463961]
[1730942757300,16.27463961,188.86,188.72,2.5776]
[1730942758115,2.6458,188.85,188.77,2.6468]
[1730942758302,2.6458,188.85,188.72,2.5776]
[1730942758805,16.27463961,188.86,188.72,2.5776]
[1730942759008,24.87843961,188.9,188.72,2.5776]
[1730942759605,2.6458,188.86,188.72,2.5776]
[1730942759804,8.6038,188.9,188.77,2.647]
[1730942760007,16.27463961,188.87,188.77,2.647]
[1730942760208,2.6463,188.82,188.72,2.5776]
[1730942760701,16.27463961,188.87,188.72,2.5776]
[1730942760918,16.27463961,188.87,188.74,2.6473]
[1730942761307,2.6462,188.83,188.76,2.6471]
[1730942761510,16.27463961,188.87,188.72,2.5776]
[1730942761914,2.6459,188.85,188.78,2.6468]
[1730942762113,16.27463961,188.87,188.78,2.6468]
[1730942762308,16.27463961,188.87,188.72,2.5776]
[1730942762704,1.3238,188.9,188.74,16.27463961]
[1730942762705,17.59843961,188.9,188.74,16.27463961]
[1730942762906,1.3238,188.9,188.78,16.27463961]
[1730942763207,7.28,188.92,188.79,1.2089]
[1730942763413,16.27463961,188.93,188.79,1.2089]
[1730942763714,18.91933961,188.93,188.87,2.6455]
[1730942763912,16.27463961,188.93,188.79,1.2089]
[1730942764416,1.2062,188.94,188.79,1.2089]
[1730942764616,16.27463961,188.98,188.81,16.27463961]
[1730942764812,2.6443,188.96,188.86,2.6456]
[1730942765019,16.27463961,188.98,188.82,2.5696]
[1730942765216,16.27463961,188.94,188.82,2.5696]
[1730942765413,2.6449,188.92,188.86,2.6457]
[1730942765917,2.6449,188.92,188.82,2.5696]
[1730942765918,2.6449,188.92,188.84,2.6458]
[1730942766104,2.6449,188.92,188.82,2.5696]
[1730942766311,2.6451,188.9,188.82,2.5696]
[1730942766615,16.27463961,188.94,188.83,2.6461]
[1730942767207,16.27463961,188.94,188.82,2.5696]
[1730942767708,2.6456,188.87,188.79,1.2089]
[1730942768113,2.6451,188.9,188.83,2.6461]
[1730942768320,16.27463961,188.94,188.79,1.2089]
[1730942768704,2.6449,188.92,188.79,1.2089]
[1730942769117,2.6443,188.97,188.9,2.645]
[1730942769312,2.6443,188.97,188.79,1.2089]
[1730942769313,17.48083961,189.0,188.85,16.27463961]
[1730942769512,17.48083961,189.0,188.86,2.5505]
[1730942769707,2.6443,188.96,188.9,2.6451]
[1730942769907,17.48083961,189.0,188.86,2.5505]
[1730942771113,1.2062,189.0,188.86,2.5505]
[1730942771515,2.6445,188.95,188.88,2.6453]
[1730942771714,1.2062,189.0,188.86,2.5505]
[1730942771922,17.48083961,189.0,188.86,2.5505]
[1730942772517,2.6445,188.95,188.86,2.5505]
[1730942772915,16.27463961,189.0,188.86,18.82513961]
[1730942773620,2.644,188.99,188.92,2.6448]
[1730942773816,7.28,189.03,188.86,18.82513961]
[1730942773817,23.55463961,189.03,188.86,18.82513961]
[1730942774122,16.27463961,189.03,188.86,18.82513961]
[1730942774321,2.6439,188.99,188.86,18.82513961]
[1730942774824,2.6439,188.99,188.93,2.6447]
[1730942775129,2.6438,189.0,188.86,18.82513961]
[1730942775325,16.27463961,189.03,188.89,16.27463961]
[1730942775534,16.27463961,189.03,188.95,2.6443]
[1730942776117,2.6437,189.01,188.95,2.6443]
[1730942776318,45.28,189.06,188.97,2.644]
[1730942776523,45.28,189.06,188.9,1.2102]
[1730942777029,45.28,189.06,188.95,2.6444]
[1730942777225,2.6436,189.02,188.9,1.2102]
[1730942777621,2.6436,189.02,188.96,2.6443]
[1730942777822,45.28,189.06,188.9,1.2102]
[1730942777823,2.6436,189.01,188.9,1.2102]
[1730942778117,16.27463961,189.04,188.94,2.6445]
[1730942778324,2.6435,189.02,188.9,1.2102]
[1730942778520,7.14,189.06,188.9,1.2102]
[1730942778822,2.6435,189.02,188.97,2.6441]
[1730942779826,2.6435,189.02,188.95,2.6443]
[1730942780031,16.27463961,189.07,188.95,2.6443]
[1730942780423,2.6437,189.01,188.95,2.6443]
[1730942780623,16.27463961,189.07,188.9,1.2102]
[1730942781231,16.27463961,189.04,188.94,2.6444]
[1730942781829,16.27463961,189.04,188.93,2.6447]
[1730942783031,16.27463961,189.04,188.92,2.6448]
[1730942783229,2.644,188.99,188.9,1.2102]
[1730942783438,16.27463961,189.04,188.9,1.2102]
[1730942783730,66.39197522,189.09,188.9,1.2102]
[1730942783731,2.6436,189.01,188.9,1.2102]
[1730942784141,16.27463961,189.07,188.97,2.6441]
[1730942784435,2.6435,189.02,188.9,1.2102]
[1730942784822,2.6435,189.02,188.96,2.6442]
[1730942785426,2.6436,189.01,188.96,2.6442]
[1730942786034,16.27463961,189.07,188.94,2.6446]
[1730942786336,16.27463961,189.07,188.9,1.2102]
[1730942786725,2.6435,189.02,188.96,2.6442]
[1730942786928,5.2809,189.24,188.98,16.27463961]
[1730942787125,18.79863961,189.15,188.98,16.27463961]
[1730942787332,18.79863961,189.15,188.99,2.5061]
[1730942787540,16.27463961,189.12,188.99,2.5061]
[1730942787839,2.6421,189.12,188.99,2.5061]
[1730942788035,2.524,189.15,188.99,3.775]
[1730942789232,2.6422,189.11,189.04,2.6432]
[1730942789531,2.6422,189.11,188.99,3.775]
[1730942789834,2.6419,189.13,189.04,2.6431]
[1730942790136,2.524,189.15,188.99,3.775]
[1730942790530,16.27463961,189.13,188.99,3.775]
[1730942790728,16.27463961,189.09,188.99,1.2074]
[1730942791136,2.524,189.15,189.0,16.27463961]
[1730942791338,2.524,189.15,189.0,17.55883961]
[1730942791538,2.524,189.15,189.0,18.76443961]
[1730942792131,59.21668436,189.23,189.0,18.76443961]
[1730942792331,1.4857,189.29,189.1,16.27463961]
[1730942792540,16.27463961,189.28,189.11,1.273]
[1730942792741,16.27463961,189.28,189.12,1.2622]
[1730942792935,16.27463961,189.24,189.12,1.2622]
[1730942793443,2.85934,189.19,189.12,3.9042]
[1730942794042,2.6413,189.18,189.11,5.1963]
[1730942794234,0.21814,189.19,189.11,3.9152]
[1730942794435,0.21814,189.19,189.11,1.273]
[1730942794635,0.21814,189.19,189.12,2.642]
[1730942794840,0.21814,189.19,189.11,1.273]
[1730942795742,0.21814,189.19,189.13,2.6419]
[1730942795943,0.21814,189.19,189.11,1.273]
[1730942797040,0.21814,189.19,189.09,1.3194]
[1730942799245,16.27463961,189.18,189.02,17.54413961]
[1730942799545,16.27463961,189.18,189.03,1.3194]
[1730942799851,2.6418,189.14,189.03,1.3194]
[1730942800648,16.27463961,189.18,189.03,1.3194]
[1730942801545,16.27463961,189.18,189.08,2.6426]
[1730942802245,16.27463961,189.18,189.08,2.6425]
[1730942802439,16.27463961,189.18,189.03,1.3194]
[1730942802647,2.642,189.13,189.03,1.3194]
[1730942803045,16.27463961,189.18,189.03,1.3194]
[1730942803248,2.6421,189.12,189.03,1.3194]
[1730942803650,2.6421,189.12,189.07,2.6427]
[1730942804347,16.27463961,189.18,189.03,1.3194]
[1730942804554,16.27463961,189.18,189.05,2.643]
[1730942804746,16.27463961,189.18,189.03,1.3194]
[1730942805052,2.6423,189.11,189.03,1.3194]
[1730942805248,16.27463961,189.18,189.03,1.3194]
[1730942805445,2.6423,189.11,189.05,2.643]
[1730942805640,16.27463961,189.18,189.05,2.643]
[1730942806152,16.27463961,189.18,189.03,3.9626]
[1730942806453,16.27463961,189.18,189.03,1.3194]
[1730942806652,2.6418,189.14,189.08,2.6425]
[1730942807547,2.6418,189.14,189.03,1.3194]
[1730942807548,2.6416,189.16,189.1,10.1544946]
[1730942808055,2.6416,189.16,189.1,12.7967946]
[1730942808856,2.6416,189.16,189.1,6.16598289]
[1730942809252,2.6416,189.16,189.1,3.52368289]
[1730942809454,2.6414,189.17,189.06,16.24425589]
[1730942809755,1.2005,189.19,189.06,16.24425589]
[1730942809946,1.2005,189.19,189.08,2.6425]
[1730942810141,2.6416,189.15,189.06,16.24425589]
[1730942810450,1.2005,189.19,189.06,16.24425589]
[1730942811153,2.6415,189.16,189.09,2.6423]
[1730942811555,1.2005,189.19,189.06,16.24425589]
[1730942812841,2.6417,189.15,189.08,2.6425]
[1730942813049,2.5035,189.26,189.09,16.24425589]
[1730942813243,2.5035,189.26,189.13,16.24425589]
[1730942813752,1.2715,189.26,189.16,16.24425589]
[1730942814251,1.2715,189.26,189.13,16.24425589]
[1730942815060,1.2715,189.26,189.14,1.2922]
[1730942815245,1.2715,189.26,189.14,2.5252]
[1730942816255,1.2715,189.26,189.15,2.6415]
[1730942816256,2.6408,189.21,189.15,2.6415]
[1730942816453,2.6408,189.21,189.14,2.5252]
[1730942816656,2.6402,189.25,189.19,2.641]
[1730942816956,0.26869,189.28,189.17,16.24425589]
[1730942817356,0.26869,189.28,189.2,2.6409]
[1730942818254,0.26869,189.28,189.21,16.24425589]
[1730942818447,1.2362,189.39,189.24,16.24425589]